fUSD/lending_fUSD_20241227
["ID","MTS","AMOUNT","RATE_DAILY","PERIOD"]
[346835675,1735314644367,-1208.94,0.00011035,2]
[346835676,1735314644376,-609.11,0.00011035,2]
[346835677,1735314644386,-500.0,0.00011035,2]
[346835678,1735314644396,-509.01,0.00011035,2]
[346835679,1735314644405,-500.0,0.00011035,2]
[346835680,1735314644415,-500.0,0.00011035,2]
[346835681,1735314644424,-500.0,0.00011035,2]
[346835682,1735314644434,-500.0,0.00011035,2]
[346835683,1735314644445,-685.05,0.00011035,2]
[346835684,1735314644455,-500.0,0.00011035,2]
[346835685,1735314644465,-1216.66,0.00011035,2]
[346835686,1735314644475,-710.2,0.00011035,2]
[346835687,1735314644485,-1636.92,0.00011035,2]
[346835688,1735314644495,-620.77,0.00011035,2]
[346835689,1735314644506,-920.08,0.00011035,2]
[346835690,1735314644515,-2109.62,0.00011035,2]
[346835691,1735314644525,-917.58,0.00011035,2]
[346835692,1735314644535,-1778.375056,0.00011035,2]
[346835693,1735314644544,-526.48,0.00011035,2]
[346835694,1735314644553,-500.0,0.00011035,2]
[346835695,1735314644563,-1720.346607,0.00011035,2]
[346835696,1735314644575,-1621.01,0.00011035,2]
[346835697,1735314644585,-500.0,0.00011035,2]
[346835698,1735314644595,-556.15,0.00011035,2]
[346835699,1735314644606,-500.0,0.00011035,2]
[346835700,1735314644616,-1530.41,0.00011035,2]
[346835701,1735314644625,-500.0,0.00011035,2]
[346835702,1735314644636,-831.45,0.00011035,2]
[346835703,1735314644646,-500.0,0.00011035,2]
[346835704,1735314644657,-921.98,0.00011035,2]
[346835705,1735314644667,-1263.38,0.00011035,2]
[346835706,1735314644677,-797.29,0.00011035,2]
[346835707,1735314644686,-500.0,0.00011035,2]
[346835708,1735314644695,-786.03,0.00011035,2]
[346835709,1735314644705,-796.43,0.00011035,2]
[346835710,1735314644714,-1765.58,0.00011035,2]
[346835711,1735314644724,-828.91,0.00011035,2]
[346835712,1735314644734,-1172.53,0.00011035,2]
[346835713,1735314644744,-663.52,0.00011035,2]
[346835714,1735314644753,-853.02,0.00011035,2]
[346835715,1735314644763,-906.97,0.00011035,2]
[346835716,1735314644772,-529.27,0.00011035,2]
[346835717,1735314644782,-1333.87,0.00011035,2]
[346835718,1735314644791,-1319.49,0.00011035,2]
[346835719,1735314644801,-4887.77,0.00011035,2]
[346835720,1735314644811,-500.0,0.00011035,2]
[346835721,1735314644820,-2237.93,0.00011035,2]
[346835722,1735314644830,-1001.93,0.00011035,2]
[346835723,1735314644840,-3222.46,0.00011035,2]
[346835724,1735314644850,-500.0,0.00011035,2]
[346835725,1735314644860,-3359.7,0.00011035,2]
[346835726,1735314644870,-2309.81,0.00011035,2]
[346835727,1735314644879,-1328.75,0.00011035,2]
[346835728,1735314644889,-39475.47,0.00011035,2]
[346835732,1735314645167,-738.47,0.00011035,2]
[346835734,1735314645177,-1652.9,0.00011035,2]
[346835736,1735314645187,-1428.82,0.00011035,2]
[346835738,1735314645196,-1137.14,0.00011035,2]
[346835739,1735314645205,-6543.56,0.00011035,2]
[346835740,1735314645215,-827.87,0.00011035,2]
[346835741,1735314645224,-1433.86,0.00011035,2]
[346835742,1735314645233,-1530.1,0.00011035,2]
[346835743,1735314645243,-500.0,0.00011035,2]
[346835744,1735314645252,-2242.5,0.00011035,2]
[346835746,1735314645261,-5641.59,0.00011035,2]
[346835748,1735314645271,-1502.68,0.00011035,2]
[346835750,1735314645280,-873.88,0.00011035,2]
[346835753,1735314645289,-1482.82,0.00011035,2]
[346835756,1735314645298,-1564.53,0.00011035,2]
[346835758,1735314645307,-1281.87,0.00011035,2]
[346835760,1735314645316,-2606.52,0.00011035,2]
[346835762,1735314645325,-3689.63,0.00011035,2]
[346835763,1735314645334,-1463.07,0.00011035,2]
[346835764,1735314645344,-500.0,0.00011035,2]
[346835766,1735314645354,-4396.81,0.00011035,2]
[346835768,1735314645363,-1299.45,0.00011035,2]
[346835770,1735314645373,-1438.28,0.00011035,2]
[346835772,1735314645383,-3302.06,0.00011035,2]
[346835773,1735314645393,-2202.95,0.00011035,2]
[346835774,1735314645402,-1819.62,0.00011035,2]
[346835775,1735314645410,-1269.62,0.00011035,2]
[346835776,1735314645420,-2188.83,0.00011035,2]
[346835777,1735314645429,-1996.33,0.00011035,2]
[346835778,1735314645440,-1486.8,0.00011035,2]
[346835779,1735314645449,-500.0,0.00011035,2]
[346835780,1735314645459,-803.93,0.00011035,2]
[346835781,1735314645469,-1150.91,0.00011035,2]
[346835782,1735314645478,-500.0,0.00011035,2]
[346835783,1735314645488,-2855.56,0.00011035,2]
[346835784,1735314645497,-2947.89,0.00011035,2]
[346835785,1735314645507,-1812.15,0.00011035,2]
[346835786,1735314645516,-561.88,0.00011035,2]
[346835787,1735314645527,-2503.79,0.00011035,2]
[346835788,1735314645537,-1607.89,0.00011035,2]
[346835789,1735314645547,-562.9,0.00011035,2]
[346835790,1735314645557,-1153.58,0.00011035,2]
[346835791,1735314645566,-3283.5,0.00011035,2]
[346835792,1735314645575,-626.48,0.00011036,2]
[346835793,1735314645585,-500.0,0.00011036,2]
[346835794,1735314645594,-500.0,0.00011036,2]
[346835795,1735314645604,-550.51,0.00011036,2]
[346835796,1735314645613,-229.62607531,0.00011036,2]
[346835797,1735314645623,-1337.0,0.00011036,2]
[346835798,1735314645633,-597.32,0.00011036,2]
[346835799,1735314645643,-500.0,0.00011036,2]
[346835800,1735314645652,-727.75,0.00011036,2]
[346835801,1735314645661,-733.48,0.00011036,2]
[346835802,1735314645671,-530.32,0.00011036,2]
[346835803,1735314645681,-500.0,0.00011036,2]
[346835804,1735314645691,-500.0,0.00011036,2]
[346835805,1735314645701,-500.0,0.00011036,2]
[346835806,1735314645711,-877.44,0.00011036,2]
[346835807,1735314645720,-500.0,0.00011036,2]
[346835808,1735314645730,-600.94,0.00011036,2]
[346835809,1735314645740,-500.0,0.00011036,2]
[346835810,1735314645749,-500.0,0.00011036,2]
[346835811,1735314645759,-500.0,0.00011036,2]
[346835812,1735314645770,-500.0,0.00011036,2]
[346835813,1735314645779,-766.04,0.00011036,2]
[346835814,1735314645789,-500.0,0.00011036,2]
[346835816,1735314645799,-500.0,0.00011036,2]
[346835818,1735314645809,-500.0,0.00011036,2]
[346835820,1735314645818,-500.0,0.00011036,2]
[346835822,1735314645827,-925.46,0.00011036,2]
[346835823,1735314645836,-786.15,0.00011036,2]
[346835824,1735314645846,-560.73,0.00011036,2]
[346835825,1735314645857,-500.0,0.00011036,2]
[346835826,1735314645866,-512.97,0.00011036,2]
[346835827,1735314645875,-896.62,0.00011036,2]
[346835828,1735314645885,-500.0,0.00011036,2]
[346835829,1735314645895,-548.71,0.00011036,2]
[346835830,1735314645904,-500.0,0.00011036,2]
[346835831,1735314645913,-500.0,0.00011036,2]
[346835832,1735314645922,-500.0,0.00011036,2]
[346835833,1735314645937,-1165.55,0.00011036,2]
[346835834,1735314645946,-500.0,0.00011036,2]
[346835835,1735314645956,-500.0,0.00011036,2]
[346835836,1735314645965,-693.77,0.00011036,2]
[346835837,1735314645975,-1248.5,0.00011036,2]
[346835838,1735314645984,-500.0,0.00011036,2]
[346835839,1735314645994,-872.03,0.00011036,2]
[346835840,1735314646003,-500.0,0.00011036,2]
[346835841,1735314646011,-514.99,0.00011036,2]
[346835842,1735314646022,-732.46,0.00011036,2]
[346835843,1735314646032,-917.39,0.00011036,2]
[346835844,1735314646041,-500.0,0.00011036,2]
[346835845,1735314646051,-500.0,0.00011036,2]
[346835846,1735314646063,-500.0,0.00011036,2]
[346835847,1735314646075,-500.0,0.00011036,2]
[346835848,1735314646088,-917.06,0.00011036,2]
[346835849,1735314646098,-500.0,0.00011036,2]
[346835850,1735314646111,-1047.31,0.00011036,2]
[346835851,1735314646121,-518.22,0.00011036,2]
[346835852,1735314646131,-1018.77,0.00011036,2]
[346835853,1735314646141,-805.78,0.00011036,2]
[346835854,1735314646151,-2067.35,0.00011036,2]
[346835855,1735314646160,-1076.75,0.00011036,2]
[346835856,1735314646170,-694.87,0.00011036,2]
[346835857,1735314646179,-500.0,0.00011036,2]
[346835858,1735314646189,-500.0,0.00011036,2]
[346835859,1735314646199,-714.69,0.00011036,2]
[346835862,1735314646208,-1364.79,0.00011036,2]
[346835863,1735314646218,-1049.39,0.00011036,2]
[346835865,1735314646227,-1576.91,0.00011036,2]
[346835866,1735314646236,-500.0,0.00011036,2]
[346835867,1735314646246,-1453.1,0.00011036,2]
[346835868,1735314646255,-1804.26,0.00011036,2]
[346835869,1735314646265,-500.0,0.00011036,2]
[346835870,1735314646274,-500.0,0.00011036,2]
[346835871,1735314646283,-808.62,0.00011036,2]
[346835872,1735314646293,-900.15,0.00011036,2]
[346835873,1735314646302,-500.0,0.00011036,2]
[346835874,1735314646312,-500.0,0.00011036,2]
[346835875,1735314646321,-1005.2,0.00011036,2]
[346835876,1735314646331,-500.0,0.00011036,2]
[346835877,1735314646340,-1522.85,0.00011036,2]
[346835878,1735314646350,-703.26,0.00011036,2]
[346835879,1735314646362,-500.0,0.00011036,2]
[346835880,1735314646371,-1274.7,0.00011036,2]
[346835881,1735314646381,-500.0,0.00011036,2]
[346835882,1735314646392,-1041.83,0.00011036,2]
[346835883,1735314646401,-899.63,0.00011036,2]
[346835884,1735314646411,-533.01,0.00011036,2]
[346835885,1735314646420,-558.98,0.00011036,2]
[346835886,1735314646430,-546.01,0.00011036,2]
[346835887,1735314646440,-831.44,0.00011036,2]
[346835888,1735314646450,-674.82,0.00011036,2]
[346835889,1735314646460,-500.0,0.00011036,2]
[346835890,1735314646471,-516.33,0.00011036,2]
[346835891,1735314646480,-804.91,0.00011036,2]
[346835892,1735314646490,-492.00525773,0.00011036,2]
[346835893,1735314646499,-887.21,0.00011036,2]
[346835894,1735314646508,-517.58,0.00011036,2]
[346835895,1735314646517,-1176.98,0.00011036,2]
[346835896,1735314646527,-500.0,0.00011036,2]
[346835897,1735314646536,-500.0,0.00011036,2]
[346835898,1735314646545,-500.0,0.00011036,2]
[346835899,1735314646555,-1127.4,0.00011036,2]
[346835900,1735314646566,-751.09,0.00011036,2]
[346835901,1735314646574,-500.0,0.00011036,2]
[346835902,1735314646584,-500.0,0.00011036,2]
[346835903,1735314646593,-822.15,0.00011036,2]
[346835904,1735314646603,-500.0,0.00011036,2]
[346835905,1735314646613,-1214.02,0.00011036,2]
[346835906,1735314646622,-1373.05,0.00011036,2]
[346835907,1735314646631,-500.0,0.00011036,2]
[346835908,1735314646640,-514.52,0.00011036,2]
[346835909,1735314646650,-500.0,0.00011036,2]
[346835910,1735314646659,-2479.03,0.00011036,2]
[346835911,1735314646687,-500.0,0.00011036,2]
[346835912,1735314646696,-1036.18,0.00011036,2]
[346835913,1735314646705,-500.0,0.00011036,2]
[346835914,1735314646714,-500.0,0.00011036,2]
[346835915,1735314646723,-500.0,0.00011036,2]
[346835916,1735314646733,-500.0,0.00011036,2]
[346835917,1735314646742,-593.28,0.00011036,2]
[346835918,1735314646751,-1135.22,0.00011036,2]
[346835919,1735314646760,-934.11,0.00011036,2]
[346835920,1735314646770,-637.79,0.00011036,2]
[346835921,1735314646779,-525.93,0.00011036,2]
[346835922,1735314646788,-500.0,0.00011036,2]
[346835923,1735314646797,-599.43,0.00011036,2]
[346835924,1735314646807,-895.08,0.00011036,2]
[346835925,1735314646817,-2150.28,0.00011036,2]
[346835926,1735314646826,-500.0,0.00011036,2]
[346835927,1735314646835,-1043.81,0.00011036,2]
[346835928,1735314646851,-604.42,0.00011036,2]
[346835929,1735314646863,-818.91,0.00011036,2]
[346835930,1735314646872,-500.0,0.00011036,2]
[346835931,1735314646883,-1041.25,0.00011036,2]
[346835932,1735314646892,-517.22,0.00011036,2]
[346835933,1735314646902,-500.0,0.00011036,2]
[346835935,1735314646911,-500.0,0.00011036,2]
[346835937,1735314646921,-715.27,0.00011036,2]
[346835939,1735314646932,-500.0,0.00011036,2]
[346835941,1735314646943,-500.0,0.00011036,2]
[346835943,1735314646953,-500.0,0.00011036,2]
[346835945,1735314646962,-500.0,0.00011036,2]
[346835946,1735314646973,-1344.57,0.00011036,2]
[346835947,1735314646983,-500.0,0.00011036,2]
[346835948,1735314646993,-500.0,0.00011036,2]
[346835949,1735314647002,-500.0,0.00011036,2]
[346835951,1735314647012,-500.0,0.00011036,2]
[346835954,1735314647023,-500.0,0.00011036,2]
[346835956,1735314647033,-1656.18,0.00011036,2]
[346835957,1735314647042,-875.18,0.00011036,2]
[346835958,1735314647052,-500.0,0.00011036,2]
[346835959,1735314647061,-1190.1,0.00011036,2]
[346835960,1735314647071,-278.2390894,0.00011036,2]
[346835961,1735314647081,-510.8,0.00011036,2]
[346835962,1735314647090,-872.87,0.00011036,2]
[346835963,1735314647100,-1457.75,0.00011036,2]
[346835964,1735314647111,-500.0,0.00011036,2]
[346835965,1735314647120,-587.57,0.00011036,2]
[346835966,1735314647130,-500.0,0.00011036,2]
[346835967,1735314647140,-500.0,0.00011036,2]
[346835968,1735314647150,-1193.41,0.00011036,2]
[346835969,1735314647159,-2007.61,0.00011036,2]
[346835970,1735314647168,-615.52,0.00011036,2]
[346835971,1735314647178,-828.05,0.00011036,2]
[346835972,1735314647187,-1098.08,0.00011036,2]
[346835973,1735314647196,-500.0,0.00011036,2]
[346835974,1735314647206,-500.0,0.00011036,2]
[346835975,1735314647215,-2339.33,0.00011036,2]
[346835976,1735314647225,-500.0,0.00011036,2]
[346835977,1735314647234,-500.0,0.00011036,2]
[346835978,1735314647244,-500.0,0.00011036,2]
[346835979,1735314647254,-967.13,0.00011036,2]
[346835980,1735314647263,-500.0,0.00011036,2]
[346835981,1735314647272,-500.0,0.00011036,2]
[346835982,1735314647282,-500.0,0.00011036,2]
[346835983,1735314647291,-500.0,0.00011036,2]
[346835984,1735314647300,-783.21,0.00011036,2]
[346835985,1735314647311,-972.12,0.00011036,2]
[346835986,1735314647320,-1407.61,0.00011036,2]
[346835987,1735314647330,-491.92275768,0.00011036,2]
[346835988,1735314647339,-1003.62,0.00011036,2]
[346835989,1735314647349,-500.0,0.00011036,2]
[346835990,1735314647359,-500.0,0.00011036,2]
[346835991,1735314647369,-500.0,0.00011036,2]
[346835992,1735314647379,-500.0,0.00011036,2]
[346835993,1735314647388,-1415.57,0.00011036,2]
[346835994,1735314647397,-1337.59,0.00011036,2]
[346835995,1735314647407,-1109.49,0.00011036,2]
[346835996,1735314647418,-918.69,0.00011036,2]
[346835997,1735314647429,-1046.01,0.00011036,2]
[346835998,1735314647439,-1044.43,0.00011036,2]
[346835999,1735314647449,-1092.51,0.00011036,2]
[346836000,1735314647459,-1660.01,0.00011036,2]
[346836001,1735314647468,-500.0,0.00011036,2]
[346836002,1735314647478,-2099.48,0.00011036,2]
[346836003,1735314647488,-500.0,0.00011036,2]
[346836004,1735314647497,-812.6,0.00011036,2]
[346836005,1735314647507,-2313.17,0.00011036,2]
[346836006,1735314647517,-500.0,0.00011036,2]
[346836007,1735314647528,-500.0,0.00011036,2]
[346836008,1735314647538,-500.0,0.00011036,2]
[346836009,1735314647548,-211.66405838,0.00011036,2]
[346836010,1735314647557,-500.98,0.00011036,2]
[346836011,1735314647567,-500.0,0.00011036,2]
[346836012,1735314647576,-594.1,0.00011036,2]
[346836013,1735314647586,-953.94,0.00011036,2]
[346836014,1735314647595,-500.0,0.00011036,2]
[346836015,1735314647606,-1065.43,0.00011036,2]
[346836016,1735314647615,-750.72,0.00011036,2]
[346836017,1735314647624,-932.99,0.00011036,2]
[346836018,1735314647634,-1324.25,0.00011036,2]
[346836019,1735314647643,-592.17,0.00011036,2]
[346836020,1735314647653,-598.73,0.00011036,2]
[346836021,1735314647662,-500.0,0.00011036,2]
[346836022,1735314647671,-1225.75,0.00011036,2]
[346836023,1735314647681,-1238.27,0.00011036,2]
[346836024,1735314647691,-852.84,0.00011036,2]
[346836025,1735314647700,-500.0,0.00011036,2]
[346836026,1735314647710,-1250.24,0.00011036,2]
[346836027,1735314647719,-2128.31,0.00011036,2]
[346836028,1735314647730,-525.54,0.00011036,2]
[346836029,1735314647740,-1453.62,0.00011036,2]
[346836030,1735314647749,-1555.98,0.00011036,2]
[346836031,1735314647759,-553.26,0.00011036,2]
[346836032,1735314647769,-500.0,0.00011036,2]
[346836033,1735314647778,-2479.56,0.00011036,2]
[346836034,1735314647787,-500.0,0.00011036,2]
[346836035,1735314647797,-500.0,0.00011036,2]
[346836036,1735314647806,-2259.33,0.00011036,2]
[346836037,1735314647816,-500.0,0.00011036,2]
[346836038,1735314647825,-496.46787873,0.00011036,2]
[346836039,1735314647835,-500.0,0.00011036,2]
[346836040,1735314647845,-562.15,0.00011036,2]
[346836041,1735314647855,-540.97,0.00011036,2]
[346836042,1735314647865,-578.24,0.00011036,2]
[346836043,1735314647875,-1046.46,0.00011036,2]
[346836044,1735314647885,-516.89,0.00011036,2]
[346836045,1735314647894,-719.96,0.00011036,2]
[346836046,1735314647904,-14830.09608263,0.00011037,2]
[346836047,1735314647914,-2180.48,0.00011037,2]
[346836048,1735314647925,-2636.7,0.00011037,2]
[346836049,1735314647939,-3214.32,0.00011037,2]
[346836050,1735314647949,-2198.14,0.00011037,2]
[346836051,1735314647959,-5513.14,0.00011037,2]
[346836052,1735314647968,-3304.63,0.00011037,2]
[346836053,1735314647978,-15099.28,0.00011037,2]
[346836054,1735314647988,-9411.99,0.00011037,2]
[346836055,1735314647997,-500.0,0.00011037,2]
[346836056,1735314648007,-500.0,0.00011037,2]
[346836057,1735314648017,-500.0,0.00011037,2]
[346836058,1735314648026,-500.0,0.00011037,2]
[346836059,1735314648036,-1428.14,0.00011037,2]
[346836060,1735314648046,-1285.3,0.00011037,2]
[346836061,1735314648057,-500.0,0.00011037,2]
[346836062,1735314648067,-1050.04,0.00011037,2]
[346836063,1735314648077,-1139.88,0.00011037,2]
[346836064,1735314648087,-1849.16,0.00011037,2]
[346836065,1735314648097,-4460.96,0.00011037,2]
[346836066,1735314648107,-1294.45,0.00011037,2]
[346836067,1735314648117,-1061.59,0.00011037,2]
[346836068,1735314648127,-1105.15,0.00011037,2]
[346836069,1735314648137,-26313.55,0.00011037,2]
[346836070,1735314648147,-500.0,0.00011037,2]
[346836071,1735314648156,-1754.47,0.00011037,2]
[346836072,1735314648166,-1268.1,0.00011037,2]
[346836073,1735314648176,-1451.39,0.00011037,2]
[346836074,1735314648186,-1278.18,0.00011037,2]
[346836075,1735314648196,-500.0,0.00011037,2]
[346836076,1735314648205,-1799.03,0.00011037,2]
[346836077,1735314648215,-807.86,0.00011037,2]
[346836078,1735314648225,-2017.1,0.00011037,2]
[346836079,1735314648234,-869.13,0.00011037,2]
[346836080,1735314648244,-500.0,0.00011037,2]
[346836081,1735314648253,-1343.09,0.00011037,2]
[346836082,1735314648263,-1994.25,0.00011037,2]
[346836083,1735314648273,-5849.07,0.00011037,2]
[346836084,1735314648283,-2130.16,0.00011037,2]
[346836085,1735314648293,-1333.4,0.00011037,2]
[346836086,1735314648303,-8303.21,0.00011037,2]
[346836087,1735314648313,-1018.72,0.00011037,2]
[346836088,1735314648323,-3267.15,0.00011037,2]
[346836089,1735314648333,-1475.34,0.00011037,2]
[346836090,1735314648342,-1034.53,0.00011037,2]
[346836091,1735314648353,-11879.75,0.00011037,2]
[346836092,1735314648363,-2836.16,0.00011037,2]
[346836093,1735314648372,-2086.16,0.00011037,2]
[346836094,1735314648382,-2544.72,0.00011037,2]
[346836095,1735314648393,-3035.61,0.00011037,2]
[346836096,1735314648403,-3089.48,0.00011037,2]
[346836097,1735314648413,-821.48,0.00011037,2]
[346836098,1735314648423,-2766.05,0.00011037,2]
[346836099,1735314648432,-6643.89,0.00011037,2]
[346836100,1735314648442,-977.3,0.00011037,2]
[346836101,1735314648453,-876.0,0.00011037,2]
[346836102,1735314648463,-2061.18,0.00011037,2]
[346836103,1735314648473,-1293.12,0.00011037,2]
[346836104,1735314648484,-572.68,0.00011037,2]
[346836105,1735314648494,-3188.44,0.00011037,2]
[346836106,1735314648503,-1091.23,0.00011037,2]
[346836107,1735314648513,-500.0,0.00011037,2]
[346836108,1735314648523,-500.0,0.00011037,2]
[346836109,1735314648534,-755.13,0.00011037,2]
[346836110,1735314648543,-645.74,0.00011037,2]
[346836111,1735314648553,-491.32201713,0.00011037,2]
[346836112,1735314648563,-10858.22,0.00011037,2]
[346836113,1735314648574,-2809.39,0.00011037,2]
[346836114,1735314648583,-3529.43,0.00011037,2]
[346836115,1735314648593,-3090.43,0.00011037,2]
[346836116,1735314648603,-3172.16,0.00011037,2]
[346836117,1735314648612,-3187.58,0.00011037,2]
[346836118,1735314648622,-4190.88,0.00011037,2]
[346836119,1735314648632,-2891.24,0.00011037,2]
[346836120,1735314648641,-6669.52,0.00011037,2]
[346836121,1735314648651,-3171.34,0.00011037,2]
[346836122,1735314648660,-2341.79,0.00011037,2]
[346836123,1735314648670,-7603.01,0.00011037,2]
[346836124,1735314648680,-1158856.20652348,0.00011038,2]
[346836125,1735314648689,-500.0,0.00011038,2]
[346836126,1735314648699,-998.45,0.00011038,2]
[346836127,1735314648708,-500.0,0.00011038,2]
[346836128,1735314648719,-500.0,0.00011038,2]
[346836129,1735314648728,-1141.25,0.00011038,2]
[346836130,1735314648738,-586.73,0.00011038,2]
[346836131,1735314648747,-791.98,0.00011038,2]
[346836132,1735314648757,-531.43,0.00011038,2]
[346836133,1735314648767,-500.0,0.00011038,2]
[346836134,1735314648777,-937.0,0.00011038,2]
[346836135,1735314648786,-575.25,0.00011038,2]
[346836136,1735314648796,-863.89,0.00011038,2]
[346836137,1735314648806,-500.0,0.00011038,2]
[346836138,1735314648816,-500.0,0.00011038,2]
[346836139,1735314648826,-651.36,0.00011038,2]
[346836140,1735314648835,-500.0,0.00011038,2]
[346836141,1735314648845,-1000.88,0.00011038,2]
[346836142,1735314648856,-500.0,0.00011038,2]
[346836143,1735314648866,-500.0,0.00011038,2]
[346836144,1735314648876,-500.0,0.00011038,2]
[346836145,1735314648886,-890.74,0.00011038,2]
[346836146,1735314648896,-882.38,0.00011038,2]
[346836147,1735314648906,-880.75,0.00011038,2]
[346836148,1735314648916,-789.64,0.00011038,2]
[346836149,1735314648926,-500.0,0.00011038,2]
[346836150,1735314648940,-552.75,0.00011038,2]
[346836151,1735314648953,-500.0,0.00011038,2]
[346836152,1735314648963,-500.0,0.00011038,2]
[346836153,1735314648972,-500.0,0.00011038,2]
[346836154,1735314648982,-500.0,0.00011038,2]
[346836155,1735314648992,-500.0,0.00011038,2]
[346836156,1735314649002,-1112.84,0.00011038,2]
[346836157,1735314649013,-500.0,0.00011038,2]
[346836158,1735314649023,-500.0,0.00011038,2]
[346836159,1735314649033,-1420.62,0.00011038,2]
[346836160,1735314649044,-500.0,0.00011038,2]
[346836161,1735314649054,-9686.93,0.00011038,2]
[346836162,1735314649064,-32059.34,0.00011038,2]
[346836163,1735314649075,-5583.18,0.00011038,2]
[346836164,1735314649086,-2787.38,0.00011038,2]
[346836165,1735314649098,-2148.59,0.00011038,2]
[346836166,1735314649111,-3436.91,0.00011038,2]
[346836167,1735314649127,-31140.88,0.00011038,2]
[346836168,1735314649138,-1143.6,0.00011038,2]
[346836169,1735314649149,-7488.08,0.00011038,2]
[346836170,1735314649161,-5395.3,0.00011038,2]
[346836171,1735314649173,-1837.27,0.00011038,2]
[346836172,1735314649183,-1047.51,0.00011038,2]
[346836173,1735314649194,-3205.59,0.00011038,2]
[346836174,1735314649205,-6005.2,0.00011038,2]
[346836175,1735314649215,-2094.76,0.00011038,2]
[346836176,1735314649228,-2392.9,0.00011038,2]
[346836177,1735314649238,-2348.06,0.00011038,2]
[346836178,1735314649248,-4557.41,0.00011039,2]
[346836179,1735314649481,-254.68,0.0001104,2]
[346836180,1735314649491,-224742.3304305,0.0001104,2]
[346836181,1735314649501,-500.0,0.00011073,2]
[346836182,1735314649511,-200.0,0.00011087,2]
[346836183,1735314649521,-1000.0,0.00011096,2]
[346836184,1735314649532,-63914.97134043,0.000111,2]
[346836185,1735314649542,-150.0,0.000111,2]
[346836186,1735314649552,-150.0,0.000111,2]
[346836187,1735314649561,-977.72,0.000111,2]
[346836188,1735314649571,-771.1,0.000111,2]
[346836189,1735314649582,-150.0,0.000111,2]
[346836190,1735314649591,-150.0,0.000111,2]
[346836191,1735314649601,-150.0,0.000111,2]
[346836192,1735314649612,-200.0,0.0001111,2]
[346836193,1735314649622,-2000.0,0.0001111,2]
[346836194,1735314649631,-200.0,0.0001111,2]
[346836195,1735314649640,-2000.0,0.0001111,2]
[346836196,1735314649650,-576.8,0.00011116,2]
[346836197,1735314649660,-514.52,0.00011173,2]
[346836198,1735314649670,-200.0,0.00011198,2]
[346836199,1735314649680,-325.98780845,0.0001121,2]
[346836200,1735314649689,-414.3318095,0.00011211,2]
[346836201,1735314649700,-200.0,0.00011221,2]
[346836202,1735314649711,-200.0,0.00011221,2]
[346836203,1735314649720,-2000.0,0.00011221,2]
[346836204,1735314649730,-151.029,0.00011255,2]
[346836205,1735314649740,-1280.126,0.00011255,2]
[346836206,1735314649749,-370.24415221,0.00011255,2]
[346836207,1735314650213,-1641.75584779,0.00011255,2]
[346836208,1735314650223,-587.915,0.00011255,2]
[346836209,1735314650233,-256.49,0.00011255,2]
[346836210,1735314650242,-212.183,0.00011255,2]
[346836211,1735314650252,-635.39,0.00011255,2]